[Event "Early-Titled-Tuesday-Blitz-September-05-2023"]
[Site "Chess.com"]
[Date "2023.09.05"]
[Round "3"]
[White "nrvisakh"]
[Black "amanjazu"]
[Result "1-0"]
[WhiteElo "2828"]
[BlackElo "2372"]
[TimeControl "180+1"]
[EndTime "8:28:42 PDT"]
[Termination "nrvisakh won by resignation"]

1. Nf3 {[%clk 0:03:00.9]} 1... d5 {[%clk 0:02:57.3]} 2. b3 {[%clk 0:03:01]} 2...
e6 {[%clk 0:02:49.5]} 3. Bb2 {[%clk 0:03:00.9]} 3... Nf6 {[%clk 0:02:49.9]} 4.
e3 {[%clk 0:02:53.2]} 4... c5 {[%clk 0:02:50.2]} 5. Ne5 {[%clk 0:02:53.1]} 5...
a6 {[%clk 0:02:46.4]} 6. g3 {[%clk 0:02:39.1]} 6... Nc6 {[%clk 0:02:45.7]} 7.
Nxc6 {[%clk 0:02:38.5]} 7... bxc6 {[%clk 0:02:45.6]} 8. Bg2 {[%clk 0:02:38.7]}
8... Bd6 {[%clk 0:02:43.6]} 9. f4 {[%clk 0:02:37.6]} 9... Qc7 {[%clk 0:02:30.5]}
10. O-O {[%clk 0:02:35.3]} 10... e5 {[%clk 0:02:29.2]} 11. Nc3 {[%clk
0:02:28.9]} 11... O-O {[%clk 0:02:22.3]} 12. Na4 {[%clk 0:02:27.9]} 12... Bg4
{[%clk 0:01:58.2]} 13. Bf3 {[%clk 0:02:22.1]} 13... Bh3 {[%clk 0:01:54.8]} 14.
Bg2 {[%clk 0:02:22]} 14... Bxg2 {[%clk 0:01:33.4]} 15. Kxg2 {[%clk 0:02:19.4]}
15... Nd7 {[%clk 0:01:33]} 16. fxe5 {[%clk 0:01:58.6]} 16... Bxe5 {[%clk
0:01:20.3]} 17. Bxe5 {[%clk 0:01:58.4]} 17... Qxe5 {[%clk 0:01:19.8]} 18. Qg4
{[%clk 0:01:58.3]} 18... f5 {[%clk 0:01:13.2]} 19. Qf4 {[%clk 0:01:58.5]} 19...
Rae8 {[%clk 0:01:03.9]} 20. Qxe5 {[%clk 0:01:58]} 20... Rxe5 {[%clk 0:01:03.5]}
21. a3 {[%clk 0:01:49.2]} 21... d4 {[%clk 0:00:57.7]} 22. Nb2 {[%clk 0:01:34.9]}
22... dxe3 {[%clk 0:00:51]} 23. Nc4 {[%clk 0:01:35.1]} 23... e2 {[%clk
0:00:50.9]} 24. Rfe1 {[%clk 0:01:34.4]} 24... Re6 {[%clk 0:00:41.5]} 25. Kf2
{[%clk 0:01:33.6]} 25... f4 {[%clk 0:00:40.3]} 26. g4 {[%clk 0:01:16.4]} 26...
f3 {[%clk 0:00:37.1]} 27. g5 {[%clk 0:01:12.4]} 27... Ne5 {[%clk 0:00:22.8]} 28.
Rg1 {[%clk 0:01:03.6]} 28... Nxc4 {[%clk 0:00:16.9]} 29. bxc4 {[%clk 0:01:04.5]}
29... Rf4 {[%clk 0:00:16.5]} 30. d3 {[%clk 0:00:55.3]} 30... Kf7 {[%clk
0:00:16.9]} 31. Rg3 {[%clk 0:00:53.2]} 31... Kg6 {[%clk 0:00:17.1]} 32. Re1
{[%clk 0:00:53]} 32... Rh4 {[%clk 0:00:14.5]} 33. h3 {[%clk 0:00:50.7]} 33...
Rf4 {[%clk 0:00:14.8]} 34. Rxf3 {[%clk 0:00:48.4]} 34... Rxf3+ {[%clk
0:00:15.2]} 35. Kxf3 {[%clk 0:00:48.6]} 35... Kxg5 {[%clk 0:00:16.1]} 36. c3
{[%clk 0:00:46.2]} 36... Kh4 {[%clk 0:00:15.3]} 37. d4 {[%clk 0:00:44.4]} 37...
cxd4 {[%clk 0:00:15.1]} 38. cxd4 {[%clk 0:00:45.3]} 38... g5 {[%clk 0:00:15.3]}
39. Rxe2 {[%clk 0:00:44.6]} 39... Rd6 {[%clk 0:00:14.1]} 40. Ke4 {[%clk
0:00:28.8]} 40... Kxh3 {[%clk 0:00:13.6]} 41. c5 {[%clk 0:00:27.6]} 41... Rd8
{[%clk 0:00:13.5]} 42. Rf2 {[%clk 0:00:24.1]} 42... g4 {[%clk 0:00:13.4]} 43.
Rf6 {[%clk 0:00:24.3]} 43... h5 {[%clk 0:00:13]} 44. Rxc6 {[%clk 0:00:24.2]}
44... g3 {[%clk 0:00:12.9]} 45. Rg6 {[%clk 0:00:21.9]} 45... g2 {[%clk
0:00:12.1]} 46. c6 {[%clk 0:00:22.2]} 46... Kh2 {[%clk 0:00:08.1]} 47. d5 {[%clk
0:00:22.4]} 47... g1=Q {[%clk 0:00:08.5]} 48. Rxg1 {[%clk 0:00:22.1]} 48... Kxg1
{[%clk 0:00:09.4]} 49. c7 {[%clk 0:00:22.7]} 49... Re8+ {[%clk 0:00:08.5]} 50.
Kf5 {[%clk 0:00:22.9]} 50... h4 {[%clk 0:00:08.8]} 51. Kg4 {[%clk 0:00:20.3]}
51... Re4+ {[%clk 0:00:06.2]} 52. Kh3 {[%clk 0:00:18.8]} 52... Rc4 {[%clk
0:00:03.9]} 53. d6 {[%clk 0:00:19.1]} 53... Kf2 {[%clk 0:00:03.7]} 54. d7 {[%clk
0:00:19.5]} 54... Rxc7 {[%clk 0:00:03.4]} 55. d8=Q {[%clk 0:00:19.6]} 55... Rc3+
{[%clk 0:00:04.3]} 56. Kxh4 {[%clk 0:00:19.8]} 56... Re3 {[%clk 0:00:05]} 57.
Qb6 {[%clk 0:00:17.8]} 1-0

[Event "Early-Titled-Tuesday-Blitz-September-05-2023"]
[Site "Chess.com"]
[Date "2023.09.05"]
[Round "3"]
[White "Anton_Demchenko"]
[Black "ChessQueen"]
[Result "0-1"]
[WhiteElo "2921"]
[BlackElo "2740"]
[TimeControl "180+1"]
[EndTime "8:28:47 PDT"]
[Termination "ChessQueen won by resignation"]

1. e4 {[%clk 0:02:56]} 1... e5 {[%clk 0:03:00]} 2. Nf3 {[%clk 0:02:55.5]} 2...
Nf6 {[%clk 0:03:00.1]} 3. Nxe5 {[%clk 0:02:55.8]} 3... d6 {[%clk 0:02:59.9]} 4.
Nf3 {[%clk 0:02:56.4]} 4... Nxe4 {[%clk 0:03:00.4]} 5. d4 {[%clk 0:02:55.7]}
5... d5 {[%clk 0:03:00.6]} 6. Bd3 {[%clk 0:02:56.4]} 6... Bd6 {[%clk 0:03:00.5]}
7. O-O {[%clk 0:02:56.6]} 7... O-O {[%clk 0:03:00.6]} 8. c4 {[%clk 0:02:57.1]}
8... c6 {[%clk 0:03:01.2]} 9. cxd5 {[%clk 0:02:56.6]} 9... cxd5 {[%clk
0:03:00.8]} 10. Nc3 {[%clk 0:02:57.4]} 10... Nxc3 {[%clk 0:03:00.9]} 11. bxc3
{[%clk 0:02:58]} 11... Nd7 {[%clk 0:03:00.9]} 12. Bg5 {[%clk 0:02:52.3]} 12...
Qc7 {[%clk 0:02:58.3]} 13. Re1 {[%clk 0:02:28]} 13... Nb6 {[%clk 0:02:40.6]} 14.
Bh4 {[%clk 0:02:15.3]} 14... h6 {[%clk 0:02:00.5]} 15. Ne5 {[%clk 0:02:12.1]}
15... Be6 {[%clk 0:01:52.7]} 16. Re3 {[%clk 0:02:08.2]} 16... Rfe8 {[%clk
0:01:48.7]} 17. Bb5 {[%clk 0:01:43.3]} 17... Nd7 {[%clk 0:01:39.6]} 18. Qh5
{[%clk 0:01:36.9]} 18... Bxe5 {[%clk 0:01:36]} 19. dxe5 {[%clk 0:01:35.2]} 19...
Nf8 {[%clk 0:01:16.8]} 20. Bxe8 {[%clk 0:01:33.4]} 20... Rxe8 {[%clk 0:01:17.7]}
21. Qe2 {[%clk 0:01:24.7]} 21... Ng6 {[%clk 0:01:17.3]} 22. Bg3 {[%clk 0:01:25]}
22... Rc8 {[%clk 0:01:17.1]} 23. Qb5 {[%clk 0:01:07.6]} 23... a6 {[%clk
0:01:15.5]} 24. Qb4 {[%clk 0:01:06.7]} 24... Ne7 {[%clk 0:01:08.1]} 25. Rb1
{[%clk 0:01:04]} 25... b5 {[%clk 0:01:07.5]} 26. Qd6 {[%clk 0:00:54]} 26... Qa7
{[%clk 0:01:05.5]} 27. Qa3 {[%clk 0:00:49.8]} 27... Nf5 {[%clk 0:01:04.8]} 28.
Ree1 {[%clk 0:00:50.6]} 28... Rc4 {[%clk 0:01:03]} 29. Rxb5 {[%clk 0:00:47.4]}
29... h5 {[%clk 0:00:55.4]} 30. Rb4 {[%clk 0:00:41.6]} 30... Rc6 {[%clk
0:00:51.5]} 31. Reb1 {[%clk 0:00:36]} 31... Qc5 {[%clk 0:00:35]} 32. Rb8+ {[%clk
0:00:31.4]} 32... Kh7 {[%clk 0:00:35.6]} 33. Qxc5 {[%clk 0:00:31.6]} 33... Rxc5
{[%clk 0:00:36.5]} 34. Ra8 {[%clk 0:00:13.8]} 34... Rxc3 {[%clk 0:00:26.5]} 35.
Rxa6 {[%clk 0:00:13.3]} 35... d4 {[%clk 0:00:27]} 36. Rd1 {[%clk 0:00:11.2]}
36... d3 {[%clk 0:00:26.7]} 37. Bf4 {[%clk 0:00:11]} 37... Bc4 {[%clk
0:00:19.1]} 38. Rc6 {[%clk 0:00:09.9]} 38... Nd4 {[%clk 0:00:19.4]} 39. Rxc4
{[%clk 0:00:04.8]} 39... Rxc4 {[%clk 0:00:19.1]} 40. Be3 {[%clk 0:00:05.6]}
40... Ne2+ {[%clk 0:00:13.7]} 41. Kf1 {[%clk 0:00:06.2]} 41... Rc3 {[%clk
0:00:14.3]} 42. g3 {[%clk 0:00:05.4]} 42... Ra3 {[%clk 0:00:14.4]} 43. Kg2
{[%clk 0:00:05.1]} 43... Kg6 {[%clk 0:00:14.4]} 44. Kf3 {[%clk 0:00:04.6]} 44...
Kf5 {[%clk 0:00:14.9]} 45. Rb1 {[%clk 0:00:02.9]} 45... Rxa2 {[%clk 0:00:12.8]}
46. Rb7 {[%clk 0:00:02.4]} 46... Ng1+ {[%clk 0:00:11.8]} 47. Kg2 {[%clk
0:00:02.3]} 47... Ne2 {[%clk 0:00:12.2]} 48. Kf3 {[%clk 0:00:02.4]} 48... Ng1+
{[%clk 0:00:11.8]} 49. Kg2 {[%clk 0:00:03]} 49... Ne2 {[%clk 0:00:11.9]} 50.
Rxf7+ {[%clk 0:00:03.7]} 50... Kxe5 {[%clk 0:00:12]} 51. Rxg7 {[%clk 0:00:03.5]}
51... Nc3 {[%clk 0:00:10.8]} 52. Rg5+ {[%clk 0:00:03.1]} 52... Ke6 {[%clk
0:00:10.4]} 53. Rxh5 {[%clk 0:00:03.7]} 53... d2 {[%clk 0:00:10.7]} 54. Bxd2
{[%clk 0:00:04.1]} 54... Rxd2 {[%clk 0:00:11.5]} 55. Rh8 {[%clk 0:00:03.9]}
55... Nd1 {[%clk 0:00:11.8]} 56. Rf8 {[%clk 0:00:04.4]} 56... Ne3+ {[%clk
0:00:11.7]} 57. Kf3 {[%clk 0:00:04.9]} 57... Nf5 {[%clk 0:00:12.3]} 58. h4
{[%clk 0:00:04.5]} 58... Rd3+ {[%clk 0:00:11.7]} 59. Kg2 {[%clk 0:00:04.9]}
59... Rd2 {[%clk 0:00:11.8]} 60. h5 {[%clk 0:00:05.2]} 60... Nh6 {[%clk
0:00:11.6]} 61. Rh8 {[%clk 0:00:04.3]} 61... Ng4 {[%clk 0:00:11.4]} 62. Rf8
{[%clk 0:00:04.9]} 62... Ke7 {[%clk 0:00:11.1]} 63. Rf4 {[%clk 0:00:05.4]} 63...
Nf6 {[%clk 0:00:11.4]} 64. g4 {[%clk 0:00:05.3]} 64... Nd5 {[%clk 0:00:10.8]}
65. Rf5 {[%clk 0:00:05.3]} 65... Ne3+ {[%clk 0:00:10.7]} 66. Kg3 {[%clk
0:00:04.7]} 66... Nxf5+ {[%clk 0:00:11.6]} 67. gxf5 {[%clk 0:00:05.3]} 67... Kf6
{[%clk 0:00:12.3]} 68. f3 {[%clk 0:00:05]} 68... Rd5 {[%clk 0:00:12.2]} 69. h6
{[%clk 0:00:05.9]} 69... Rxf5 {[%clk 0:00:12.4]} 0-1

[Event "Early-Titled-Tuesday-Blitz-September-05-2023"]
[Site "Chess.com"]
[Date "2023.09.05"]
[Round "3"]
[White "AsadliVugar"]
[Black "BogdanDeac"]
[Result "1-0"]
[WhiteElo "2806"]
[BlackElo "3028"]
[TimeControl "180+1"]
[EndTime "8:28:48 PDT"]
[Termination "AsadliVugar won on time"]

1. e4 {[%clk 0:02:59.9]} 1... e5 {[%clk 0:03:00]} 2. Nf3 {[%clk 0:03:00.1]} 2...
Nf6 {[%clk 0:03:00.4]} 3. Nxe5 {[%clk 0:02:56.6]} 3... d6 {[%clk 0:03:00.7]} 4.
Nf3 {[%clk 0:02:56.9]} 4... Nxe4 {[%clk 0:03:01.4]} 5. d4 {[%clk 0:02:57.4]}
5... d5 {[%clk 0:03:01.9]} 6. Bd3 {[%clk 0:02:57.7]} 6... Nc6 {[%clk 0:03:02.5]}
7. O-O {[%clk 0:02:55.9]} 7... Bg4 {[%clk 0:03:03.1]} 8. Re1 {[%clk 0:02:49.4]}
8... Be7 {[%clk 0:02:49.7]} 9. c3 {[%clk 0:02:45.9]} 9... f5 {[%clk 0:02:45]}
10. Nbd2 {[%clk 0:02:43.2]} 10... O-O {[%clk 0:02:42.8]} 11. Nf1 {[%clk
0:02:41.9]} 11... Bd6 {[%clk 0:02:21.1]} 12. Ng3 {[%clk 0:02:35.6]} 12... Kh8
{[%clk 0:02:04.4]} 13. h3 {[%clk 0:02:14.8]} 13... Bxg3 {[%clk 0:01:45.4]} 14.
fxg3 {[%clk 0:02:13.5]} 14... Bh5 {[%clk 0:01:45.6]} 15. Kh2 {[%clk 0:02:08.2]}
15... Ne7 {[%clk 0:01:33.1]} 16. Qb3 {[%clk 0:02:03.6]} 16... Ng6 {[%clk
0:01:25.8]} 17. Ne5 {[%clk 0:01:47]} 17... Nxe5 {[%clk 0:00:22.9]} 18. dxe5
{[%clk 0:01:47.9]} 18... Nc5 {[%clk 0:00:23.2]} 19. Qc2 {[%clk 0:01:42.2]} 19...
Bg6 {[%clk 0:00:21.9]} 20. e6 {[%clk 0:01:27.5]} 20... Qf6 {[%clk 0:00:20.6]}
21. e7 {[%clk 0:01:15.4]} 21... Rfe8 {[%clk 0:00:19.3]} 22. Bf4 {[%clk
0:00:57.6]} 22... Rxe7 {[%clk 0:00:10.8]} 23. Rxe7 {[%clk 0:00:57.1]} 23... Qxe7
{[%clk 0:00:11.7]} 24. Bxf5 {[%clk 0:00:57.4]} 24... Bxf5 {[%clk 0:00:11.9]} 25.
Qxf5 {[%clk 0:00:57.6]} 25... c6 {[%clk 0:00:12.1]} 26. Bg5 {[%clk 0:00:43.4]}
26... Qe8 {[%clk 0:00:08.6]} 27. Rf1 {[%clk 0:00:40.5]} 27... Ne4 {[%clk
0:00:06.2]} 28. Bf4 {[%clk 0:00:35.8]} 28... Kg8 {[%clk 0:00:05.4]} 29. Be5
{[%clk 0:00:34]} 29... Qe7 {[%clk 0:00:03.9]} 30. Bd4 {[%clk 0:00:33.5]} 30...
Rf8 {[%clk 0:00:02.7]} 31. Qxf8+ {[%clk 0:00:31.7]} 31... Qxf8 {[%clk
0:00:03.6]} 32. Rxf8+ {[%clk 0:00:31.9]} 32... Kxf8 {[%clk 0:00:04.5]} 33. Bxa7
{[%clk 0:00:32.3]} 33... c5 {[%clk 0:00:05]} 34. b4 {[%clk 0:00:25]} 34... Nxc3
{[%clk 0:00:02.9]} 35. Bxc5+ {[%clk 0:00:23]} 35... Kf7 {[%clk 0:00:03.5]} 36.
a3 {[%clk 0:00:23.9]} 36... b5 {[%clk 0:00:03.8]} 37. Bd4 {[%clk 0:00:20.2]}
37... Ne2 {[%clk 0:00:04.2]} 38. Be3 {[%clk 0:00:17.7]} 38... d4 {[%clk
0:00:04.6]} 39. Bd2 {[%clk 0:00:18.1]} 39... Ke6 {[%clk 0:00:05.1]} 40. g4
{[%clk 0:00:14.8]} 40... Kd5 {[%clk 0:00:05.5]} 41. g3 {[%clk 0:00:15.4]} 41...
Ke4 {[%clk 0:00:04.5]} 42. Kg2 {[%clk 0:00:16.3]} 42... Nc3 {[%clk 0:00:04.9]}
43. Kf2 {[%clk 0:00:16.1]} 43... Kd3 {[%clk 0:00:05.1]} 44. Bf4 {[%clk
0:00:16.3]} 44... Kc2 {[%clk 0:00:04.8]} 45. g5 {[%clk 0:00:09.8]} 45... d3
{[%clk 0:00:04.7]} 46. h4 {[%clk 0:00:09.5]} 46... Nd5 {[%clk 0:00:04.8]} 47. g6
{[%clk 0:00:07.9]} 47... hxg6 {[%clk 0:00:04.9]} 48. Bg5 {[%clk 0:00:08.2]}
48... Nc3 {[%clk 0:00:04.7]} 49. Bf4 {[%clk 0:00:07.8]} 49... Nb1 {[%clk
0:00:04.1]} 50. g4 {[%clk 0:00:07.8]} 50... Nxa3 {[%clk 0:00:04.1]} 51. Kf3
{[%clk 0:00:05.7]} 51... Nc4 {[%clk 0:00:03.9]} 52. Ke4 {[%clk 0:00:06.2]} 52...
Nd2+ {[%clk 0:00:04.1]} 53. Kd4 {[%clk 0:00:05.4]} 53... Nf3+ {[%clk 0:00:04]}
54. Kc5 {[%clk 0:00:05.9]} 54... d2 {[%clk 0:00:01.4]} 55. Bxd2 {[%clk
0:00:05.4]} 55... Kxd2 {[%clk 0:00:02.3]} 56. Kxb5 {[%clk 0:00:05.6]} 56... Kc3
{[%clk 0:00:02.9]} 57. Kc5 {[%clk 0:00:05.7]} 57... Nd4 {[%clk 0:00:03.5]} 58.
Kd5 {[%clk 0:00:05.4]} 58... Kd3 {[%clk 0:00:03.5]} 59. Ke5 {[%clk 0:00:05.3]}
59... Nc6+ {[%clk 0:00:01.8]} 60. Ke6 {[%clk 0:00:05.4]} 60... Nxb4 {[%clk
0:00:02.1]} 61. Kf7 {[%clk 0:00:05.9]} 61... g5 {[%clk 0:00:01.3]} 62. h5 {[%clk
0:00:05.3]} 62... Ke4 {[%clk 0:00:01.3]} 63. Kxg7 {[%clk 0:00:05.7]} 63... Nc6
{[%clk 0:00:01.4]} 64. h6 {[%clk 0:00:05.8]} 1-0

[Event "Early-Titled-Tuesday-Blitz-September-05-2023"]
[Site "Chess.com"]
[Date "2023.09.05"]
[Round "3"]
[White "IPAchess"]
[Black "biostatistician"]
[Result "1/2-1/2"]
[WhiteElo "2418"]
[BlackElo "2593"]
[TimeControl "180+1"]
[EndTime "8:28:49 PDT"]
[Termination "Game drawn by agreement"]

1. d4 {[%clk 0:02:56.2]} 1... Nf6 {[%clk 0:02:59.4]} 2. c4 {[%clk 0:02:56.5]}
2... g6 {[%clk 0:02:59.7]} 3. Nc3 {[%clk 0:02:56.6]} 3... Bg7 {[%clk 0:03:00.6]}
4. e4 {[%clk 0:02:56.8]} 4... d6 {[%clk 0:03:01.2]} 5. Be2 {[%clk 0:02:57.5]}
5... O-O {[%clk 0:03:02.1]} 6. Be3 {[%clk 0:02:57.8]} 6... Nc6 {[%clk
0:03:01.9]} 7. g4 {[%clk 0:02:55.1]} 7... e5 {[%clk 0:03:01.3]} 8. d5 {[%clk
0:02:54.9]} 8... Nd4 {[%clk 0:03:01.5]} 9. f3 {[%clk 0:02:43.3]} 9... h5 {[%clk
0:02:53.9]} 10. g5 {[%clk 0:02:35.6]} 10... Nh7 {[%clk 0:02:52.6]} 11. h4 {[%clk
0:02:36.2]} 11... f5 {[%clk 0:02:52.2]} 12. Qd2 {[%clk 0:02:32.5]} 12... fxe4
{[%clk 0:02:30.5]} 13. fxe4 {[%clk 0:02:30.6]} 13... Nxe2 {[%clk 0:02:30.7]} 14.
Ngxe2 {[%clk 0:02:27.5]} 14... Bg4 {[%clk 0:02:30.9]} 15. O-O-O {[%clk
0:02:25.9]} 15... Qd7 {[%clk 0:02:30.3]} 16. Rdf1 {[%clk 0:02:25.7]} 16... a6
{[%clk 0:02:26.3]} 17. Kb1 {[%clk 0:02:14.8]} 17... Bh3 {[%clk 0:02:22]} 18. Rf2
{[%clk 0:02:03.5]} 18... Rxf2 {[%clk 0:02:21.3]} 19. Bxf2 {[%clk 0:02:04.4]}
19... Rf8 {[%clk 0:02:21]} 20. Qe3 {[%clk 0:02:04.9]} 20... Bg4 {[%clk
0:02:19.7]} 21. Nc1 {[%clk 0:02:01.8]} 21... Rf3 {[%clk 0:02:19.4]} 22. Qe1
{[%clk 0:02:02]} 22... Nf8 {[%clk 0:02:17.8]} 23. Nb3 {[%clk 0:02:00]} 23... Qf7
{[%clk 0:02:17.3]} 24. Rh2 {[%clk 0:01:57.3]} 24... Nd7 {[%clk 0:02:15.6]} 25.
Nd2 {[%clk 0:01:56.8]} 25... Rh3 {[%clk 0:01:51.2]} 26. Rxh3 {[%clk 0:01:56.7]}
26... Bxh3 {[%clk 0:01:52.1]} 27. Be3 {[%clk 0:01:50.8]} 27... Bf8 {[%clk
0:01:50.2]} 28. Nd1 {[%clk 0:01:26.1]} 28... Be7 {[%clk 0:01:48.3]} 29. Qg3
{[%clk 0:01:21.6]} 29... Bg4 {[%clk 0:01:39.7]} 30. Nf2 {[%clk 0:01:22.1]} 30...
Be2 {[%clk 0:01:38.6]} 31. Kc2 {[%clk 0:01:16.5]} 31... c6 {[%clk 0:01:37]} 32.
b3 {[%clk 0:01:08.5]} 32... Bd8 {[%clk 0:01:37]} 33. Nb1 {[%clk 0:00:54.4]}
33... Ba5 {[%clk 0:01:25.3]} 34. a3 {[%clk 0:00:53.4]} 34... c5 {[%clk
0:01:24.1]} 35. Bd2 {[%clk 0:00:47.9]} 35... Bxd2 {[%clk 0:01:23.3]} 36. Kxd2
{[%clk 0:00:46.5]} 36... Qf3 {[%clk 0:00:58.6]} 37. Qxf3 {[%clk 0:00:45.6]}
37... Bxf3 {[%clk 0:00:59.5]} 38. Ke3 {[%clk 0:00:46.2]} 38... Bg2 {[%clk
0:00:58]} 39. Nc3 {[%clk 0:00:44.2]} 39... Kf7 {[%clk 0:00:57.5]} 40. Nd3 {[%clk
0:00:30.3]} 40... Bf1 {[%clk 0:00:54]} 41. Ne1 {[%clk 0:00:29.3]} 41... Ke7
{[%clk 0:00:49.9]} 42. Kf2 {[%clk 0:00:29.6]} 42... Bh3 {[%clk 0:00:50]} 43. Kg3
{[%clk 0:00:30.3]} 43... Bg4 {[%clk 0:00:49.2]} 44. Ng2 {[%clk 0:00:30.9]} 44...
Nb8 {[%clk 0:00:41.4]} 45. Ne3 {[%clk 0:00:31.3]} 45... Bd7 {[%clk 0:00:41.7]}
46. Kf3 {[%clk 0:00:32]} 46... b5 {[%clk 0:00:39.5]} 47. Ke2 {[%clk 0:00:32]}
47... Kd8 {[%clk 0:00:38.9]} 48. Kd3 {[%clk 0:00:31.4]} 48... Kc7 {[%clk
0:00:39]} 49. Ned1 {[%clk 0:00:31]} 49... Kb6 {[%clk 0:00:39.2]} 50. Nb2 {[%clk
0:00:29]} 50... Bg4 {[%clk 0:00:38.9]} 51. b4 {[%clk 0:00:28.1]} 51... cxb4
{[%clk 0:00:37]} 52. axb4 {[%clk 0:00:28.1]} 52... Nd7 {[%clk 0:00:37.6]} 53.
cxb5 {[%clk 0:00:26.5]} 53... axb5 {[%clk 0:00:38.5]} 54. Na2 {[%clk 0:00:20.6]}
54... Ka6 {[%clk 0:00:36.8]} 55. Nc1 {[%clk 0:00:21.1]} 55... Nb6 {[%clk
0:00:36.9]} 56. Nb3 {[%clk 0:00:21.8]} 56... Na4 {[%clk 0:00:35.6]} 57. Kc2
{[%clk 0:00:16.4]} 57... Be2 {[%clk 0:00:33.3]} 58. Nd2 {[%clk 0:00:14.5]} 58...
Kb6 {[%clk 0:00:30.2]} 59. Kb3 {[%clk 0:00:14]} 59... Nxb2 {[%clk 0:00:28.2]}
60. Kxb2 {[%clk 0:00:14.9]} 60... Bd3 {[%clk 0:00:28.6]} 61. Kc3 {[%clk
0:00:15.4]} 61... Be2 {[%clk 0:00:28.7]} 62. Nb1 {[%clk 0:00:14.5]} 62... Bf3
{[%clk 0:00:27.3]} 63. Kd3 {[%clk 0:00:14]} 63... Kc7 {[%clk 0:00:25.5]} 64. Nc3
{[%clk 0:00:14.6]} 64... Kb6 {[%clk 0:00:25.6]} 65. Ke3 {[%clk 0:00:15.3]} 65...
Bg4 {[%clk 0:00:24.6]} 66. Na2 {[%clk 0:00:15.7]} 66... Bd7 {[%clk 0:00:24.9]}
67. Nc1 {[%clk 0:00:16]} 67... Ka6 {[%clk 0:00:25.4]} 68. Nb3 {[%clk 0:00:16.9]}
68... Kb6 {[%clk 0:00:26.1]} 69. Na5 {[%clk 0:00:17.4]} 69... Kc7 {[%clk
0:00:25.9]} 70. Kd3 {[%clk 0:00:16.9]} 70... Kb6 {[%clk 0:00:26.3]} 71. Kc3
{[%clk 0:00:17.4]} 71... Kc7 {[%clk 0:00:26.8]} 72. Nb3 {[%clk 0:00:17.7]} 72...
Kb6 {[%clk 0:00:27.4]} 73. Nc1 {[%clk 0:00:18.2]} 73... Kc7 {[%clk 0:00:28]} 74.
Ne2 {[%clk 0:00:18.2]} 74... Kb6 {[%clk 0:00:28.4]} 75. Ng1 {[%clk 0:00:18.8]}
75... Bg4 {[%clk 0:00:28.2]} 76. Kd2 {[%clk 0:00:18.2]} 76... Kc7 {[%clk
0:00:28.2]} 77. Ke3 {[%clk 0:00:17.9]} 77... Kd7 {[%clk 0:00:28.6]} 78. Nf3
{[%clk 0:00:18]} 78... Bxf3 {[%clk 0:00:28.8]} 79. Kxf3 {[%clk 0:00:18.9]} 79...
Kc7 {[%clk 0:00:29.2]} 1/2-1/2

[Event "Early-Titled-Tuesday-Blitz-September-05-2023"]
[Site "Chess.com"]
[Date "2023.09.05"]
[Round "3"]
[White "artin10862"]
[Black "sokidze"]
[Result "0-1"]
[WhiteElo "2971"]
[BlackElo "2764"]
[TimeControl "180+1"]
[EndTime "8:28:50 PDT"]
[Termination "sokidze won on time"]

1. d4 {[%clk 0:02:59.8]} 1... d5 {[%clk 0:02:59.1]} 2. Nf3 {[%clk 0:02:57.5]}
2... Nf6 {[%clk 0:02:58.7]} 3. e3 {[%clk 0:02:57]} 3... c5 {[%clk 0:02:55.6]} 4.
dxc5 {[%clk 0:02:56.9]} 4... e6 {[%clk 0:02:55.5]} 5. a3 {[%clk 0:02:41.2]} 5...
a5 {[%clk 0:02:49]} 6. c4 {[%clk 0:02:40.4]} 6... Bxc5 {[%clk 0:02:47.3]} 7.
cxd5 {[%clk 0:02:39.7]} 7... exd5 {[%clk 0:02:47.4]} 8. b3 {[%clk 0:02:25.4]}
8... Nc6 {[%clk 0:02:42.7]} 9. Bb2 {[%clk 0:02:23.8]} 9... O-O {[%clk
0:02:42.8]} 10. Be2 {[%clk 0:02:19.8]} 10... Bg4 {[%clk 0:02:23.1]} 11. O-O
{[%clk 0:02:16.5]} 11... Ba7 {[%clk 0:01:45.2]} 12. Ra2 {[%clk 0:01:52.9]} 12...
Re8 {[%clk 0:01:41]} 13. Ba1 {[%clk 0:01:48.2]} 13... Ne4 {[%clk 0:01:36.3]} 14.
Nc3 {[%clk 0:01:47.4]} 14... d4 {[%clk 0:00:54.8]} 15. Nxe4 {[%clk 0:01:28.1]}
15... Rxe4 {[%clk 0:00:55.7]} 16. Nxd4 {[%clk 0:01:28.1]} 16... Bxe2 {[%clk
0:00:41.1]} 17. Nxe2 {[%clk 0:01:27.3]} 17... Qg5 {[%clk 0:00:40.7]} 18. Ng3
{[%clk 0:01:22.4]} 18... Ree8 {[%clk 0:00:37.4]} 19. Rd2 {[%clk 0:00:59.2]}
19... Rad8 {[%clk 0:00:35.9]} 20. Rxd8 {[%clk 0:00:54.6]} 20... Rxd8 {[%clk
0:00:36.8]} 21. Qc2 {[%clk 0:00:51.9]} 21... Qd5 {[%clk 0:00:26.1]} 22. h3
{[%clk 0:00:28.7]} 22... Qd3 {[%clk 0:00:23.4]} 23. Qb2 {[%clk 0:00:29]} 23...
f6 {[%clk 0:00:22.6]} 24. Nh5 {[%clk 0:00:28.7]} 24... Ne5 {[%clk 0:00:18.4]}
25. Nf4 {[%clk 0:00:24.3]} 25... Qd7 {[%clk 0:00:17.2]} 26. Qb1 {[%clk 0:00:22]}
26... Nf7 {[%clk 0:00:14.7]} 27. Rc1 {[%clk 0:00:20]} 27... Ng5 {[%clk
0:00:13.8]} 28. Qc2 {[%clk 0:00:18]} 28... Ne6 {[%clk 0:00:11.5]} 29. Qc4 {[%clk
0:00:14]} 29... Re8 {[%clk 0:00:12.1]} 30. Nd5 {[%clk 0:00:11.7]} 30... Qf7
{[%clk 0:00:11.3]} 31. Rd1 {[%clk 0:00:10.1]} 31... h6 {[%clk 0:00:11.7]} 32.
Qe2 {[%clk 0:00:09.6]} 32... Bb8 {[%clk 0:00:12.1]} 33. g3 {[%clk 0:00:09.5]}
33... Ng5 {[%clk 0:00:12]} 34. Kg2 {[%clk 0:00:08.8]} 34... h5 {[%clk
0:00:10.8]} 35. h4 {[%clk 0:00:09]} 35... Ne4 {[%clk 0:00:10.2]} 36. Qf3 {[%clk
0:00:09.4]} 36... Nc5 {[%clk 0:00:08.3]} 37. b4 {[%clk 0:00:05.6]} 37... axb4
{[%clk 0:00:09.2]} 38. axb4 {[%clk 0:00:06.5]} 38... Nd7 {[%clk 0:00:09.8]} 39.
Qf5 {[%clk 0:00:05.8]} 39... Be5 {[%clk 0:00:08.3]} 40. Bxe5 {[%clk 0:00:04.6]}
40... Nxe5 {[%clk 0:00:09.2]} 41. Nf4 {[%clk 0:00:04.2]} 41... g6 {[%clk
0:00:08.6]} 42. Qc2 {[%clk 0:00:04.8]} 42... Kg7 {[%clk 0:00:08.2]} 43. Rc1
{[%clk 0:00:04.4]} 43... Ng4 {[%clk 0:00:06.6]} 44. Qc7 {[%clk 0:00:04.4]} 44...
Re7 {[%clk 0:00:07.2]} 45. Qd6 {[%clk 0:00:04.7]} 45... Rd7 {[%clk 0:00:07.2]}
46. Qe6 {[%clk 0:00:04.4]} 46... Qxe6 {[%clk 0:00:04.8]} 47. Nxe6+ {[%clk
0:00:05.3]} 47... Kf7 {[%clk 0:00:05.7]} 48. Nd4 {[%clk 0:00:05.8]} 48... Ne5
{[%clk 0:00:05.7]} 49. b5 {[%clk 0:00:06.2]} 49... Nd3 {[%clk 0:00:05.8]} 50.
Rc3 {[%clk 0:00:06.5]} 50... Ne5 {[%clk 0:00:06.2]} 51. Kf1 {[%clk 0:00:07]}
51... g5 {[%clk 0:00:04.7]} 52. Ke2 {[%clk 0:00:05.7]} 52... gxh4 {[%clk
0:00:04.7]} 53. gxh4 {[%clk 0:00:06.6]} 53... Ng6 {[%clk 0:00:05.4]} 54. Nf3
{[%clk 0:00:06.4]} 54... Re7 {[%clk 0:00:02.1]} 55. Rc5 {[%clk 0:00:06.2]} 55...
Kg7 {[%clk 0:00:02.4]} 56. Rd5 {[%clk 0:00:05.3]} 56... Nf4+ {[%clk 0:00:02.3]}
57. Kf1 {[%clk 0:00:04.8]} 57... Nxd5 {[%clk 0:00:03.2]} 58. Nd4 {[%clk
0:00:05]} 58... Kf7 {[%clk 0:00:03.8]} 59. Nf5 {[%clk 0:00:05.2]} 59... Rd7
{[%clk 0:00:04.5]} 60. Ke2 {[%clk 0:00:04.9]} 60... Nc3+ {[%clk 0:00:04.8]} 61.
Kf3 {[%clk 0:00:05.8]} 61... Nxb5 {[%clk 0:00:05.7]} 0-1